Cogmind - Beta 15 @@@ ROGUE MODE // 2025.07.24 @ 21:56:05 Player: Conlarando Result: Destroyed by G-34 Mercenary with Small Laser Performance ------------- Evolutions (0) 0 Regions Visited (1) 200 Robots Destroyed (21) 105 Value Destroyed (437) 437 Prototype IDs (0) 0 Alien Tech Used (0) 0 Bonus (0) 0 TOTAL SCORE: 742 Bonus ------- None Cogmind --------- Core Integrity 0/250 Matter 292/300 Energy 125/125 System Corruption 1% Temperature Cool (12) Movement Rolling (95) Ox1 Location -10/Materials Parts ------- > --- POWER (1) -------- Light Ion Engine > --- PROPULSION (2) --- Wheel Wheel > --- UTILITY (2) ------ Large Storage Unit > --- WEAPON (2) ------- Light Assault Rifle Light Assault Rifle > --- INVENTORY (15) --- Light Ion Engine Light Treads Wheel Flight Unit Flight Unit Flight Unit Small Storage Unit Sensor Array Small Laser Assault Rifle Light Assault Rifle Light Assault Rifle Grenade Launcher Peak State ------------ > --- POWER ------------ Light Ion Engine > --- PROPULSION ------- Light Treads Light Treads > --- UTILITY ---------- Heat Sink Large Storage Unit > --- WEAPON ----------- Assault Rifle Light Assault Rifle > --- INVENTORY -------- Light Ion Engine Light Ion Engine Wheel Wheel Wheel Flight Unit Small Storage Unit Small Laser Light Assault Rifle Light Assault Rifle [Rating: 8] Favorites ----------- Power Light Ion Engine Engine Light Ion Engine Propulsion Light Treads Treads Light Treads Wheel Wheel Utility Small Storage Unit Device ECM Suite Storage Small Storage Unit Weapon Light Assault Rifle Ballistic Gun Light Assault Rifle Ballistic Cannon Light Cannon Build | -11 -10 ------- Run | Yrd Mat Slots Evolved . | . . Power . | . . Propulsion . | . . Utility . | . . Weapon . | . . Parts Attached 19 | 7 12 Power 3 | 2 1 Engine 3 | 2 1 Core . | . . Reactor . | . . Propulsion 4 | 2 2 Treads 2 | 2 . Leg . | . . Wheel 2 | . 2 Hover . | . . Flight . | . . Utility 5 | 1 4 Device 2 | . 2 Storage 3 | 1 2 Processor . | . . Hackware . | . . Protection . | . . Artifact . | . . Weapon 7 | 2 5 Energy Gun . | . . Energy Cannon . | . . Ballistic Gun 5 | 2 3 Ballistic Cannon 2 | . 2 Launcher . | . . Special Weapon . | . . Impact Weapon . | . . Slashing Weapon . | . . Piercing Weapon . | . . Special Melee Weapon . | . . Unidentified Prototypes . | . . Parts Lost 4 | . 4 Power 2 | . 2 Propulsion 1 | . 1 Utility 1 | . 1 Weapon . | . . Highest Loss Streak 2 | . 2 To Critical Strikes . | . . Average Backups 9 | 3 10 Power 1 | . 1 Propulsion 4 | 1 4 Utility . | . . Weapon 2 | . 2 Tool/Special . | . . Unused Backups 11 | 1 10 Power 1 | . 1 Propulsion 7 | 1 6 Utility 1 | . 1 Weapon 2 | . 2 Tool/Special . | . . Average Slot Usage (%) 96 | . 96 Engine 14 | . 14 Treads 18 | . 18 Wheel 9 | . 9 Device 10 | . 10 Storage 14 | . 14 Ballistic Gun 25 | . 25 Ballistic Cannon 2 | . 2 Peak Build Rating 8 | 6 8 Average Rating 6 | 4 7 On Entrance 3 | . 6 Naked Turns . | . . Heaviest Build 30 | 13 30 Greatest Support 40 | 40 40 Greatest Overweight (x) 2 | . 2 Average Overweight (x) . | . . Largest Inventory Capacity 15 | 8 15 Average Capacity 11 | 7 11 Most Carried 15 | 8 15 Average Carried 9 | 3 10 Final Capacity 15 | 8 15 Final Carried 13 | 8 13 Class Distribution -------------------- 79% | Mutant 20% | Scavenger-Mutant Dominant Class ---------------- Mutant | -10/Materials Resources | -11 -10 ----------- Run | Yrd Mat Matter Collected 652 | 257 395 Remotely . | . . Salvage Created 652 | 24 628 Parts 35 | 3 32 Haulers Intercepted . | . . Recyclers Shooed . | . . Parts Field Recycled . | . . Retrieved Matter . | . . Parts Self-Destructed . | . . Prevented . | . . Kills | -11 -10 ------- Run | Yrd Mat Combat Hostiles Destroyed 19 | . 19 Guns 17 | . 17 Cannons 2 | . 2 Classes Destroyed 4 | 1 3 Worker 1 | 1 . Recycler 1 | . 1 Swarmer 9 | . 9 Grunt 10 | . 10 Best Kill Streak 7 | 1 7 Combat Bots Only 6 | . 6 Max Kills in Single Turn 1 | 1 1 Gunslinging . | . . Exploded . | . . Melee . | . . Uniques/NPCs Destroyed . | . . Combat | -11 -10 -------- Run | Yrd Mat Hostile Shots Fired 131 | . 131 Missed 34 | . 34 Hits 97 | . 97 Projectile 97 | . 97 Damage Taken 981 | . 981 Core 252 | . 252 Absorbed by Shields . | . . Core Remaining (%) 100 | 100 . Volleys Fired 73 | 1 72 Largest 2 | 2 2 Hottest 60 | 40 60 Shots Fired 146 | 2 144 Gun 140 | 2 138 Cannon 6 | . 6 Launcher . | . . Special . | . . Kinetic 146 | 2 144 Thermal . | . . Explosive . | . . Electromagnetic . | . . Robot Hit Streak 11 | 1 11 Robot Miss Streak 5 | . 5 Penetration Max . | . . Secondary Targets 4 | . 4 Max Gunslinging Chain 1 | . 1 Shots Hit Robots 87 | 1 86 Core Hits 36 | 1 35 Critical Kills . | . . Critical Parts Destroyed . | . . Critical Strikes . | . . Melee Attacks . | . . Impact . | . . Slashing . | . . Piercing . | . . Sneak Attacks . | . . Combat Hostiles . | . . Follow-up Attacks . | . . Damage Inflicted 786 | 10 776 Guns 700 | 10 690 Cannons 66 | . 66 Explosions . | . . Melee . | . . Ramming 20 | . 20 Kinetic 766 | 10 756 Thermal . | . . Explosive . | . . Electromagnetic . | . . Impact . | . . Slashing . | . . Piercing . | . . Highest Corruption 1 | . 1 Average Corruption 1 | . 1 Corruption Purged . | . . Corruption Blocked . | . . Effects 7 | . 7 Message Errors 2 | . 2 Matter Fused 1 | . 1 Heat Flow Errors 1 | . 1 Parts Rejected 2 | . 2 Data Loss (minor) 1 | . 1 Overload Shots . | . . Overflow Damage . | . . Projectiles . | . . Explosions . | . . Melee . | . . Knockbacks . | . . Impact . | . . Kinetic . | . . Secondary . | . . Self-Inflicted Damage 10 | . 10 Shots . | . . Rammed 2 | . 2 Targets Rammed 2 | . 2 Kicked . | . . Crushed . | . . Highest Temperature 174 | . 174 Average Temperature 42 | . 42 Received Heat Transfer 276 | . 276 Siege Activations . | . . Martial Activations . | . . Shielding Activations . | . . Robots Disrupted . | . . Combat Hostiles . | . . Robots Corrupted . | . . Combat Hostiles . | . . Parts Fried . | . . Impact Corruptions . | . . Robots Melted . | . . Combat Hostiles . | . . Parts Melted . | . . Heat Transferred . | . . Parts Sabotaged . | . . Parts Stolen . | . . Parts Stripped . | . . Power Chain Reactions . | . . Alert | -11 -10 ------- Run | Yrd Mat Maximum Alert Level 1 | . 1 Low Security (%) 99 | 100 99 Level 1 . | . . Level 2 . | . . Level 3 . | . . Level 4 . | . . Level 5 . | . . High Security . | . . Max Security . | . . Peak Influence 203 | 5 203 Initial 3 | . 3 Average 55 | . 62 Influence Increases 511 | 5 506 Destroy 0b10 Robot/C 380 | . 380 Destroy 0b10 Robot/NC 10 | 5 5 Destroy Leader 60 | . 60 Destroy Structure 1 | . 1 Lose Combat Pursuer 60 | . 60 Influence Decreases 308 | . 308 Entered New Map 2 | . 2 Time Decay 187 | . 187 Lost Part 30 | . 30 Purge Threat 89 | . 89 Squads Dispatched 3 | . 3 Investigation 2 | . 2 Extermination . | . . Reinforcement 1 | . 1 Assault . | . . Garrison . | . . Intercept . | . . Searches Triggered . | . . Construction Impeded . | . . Haulers Reinforced . | . . Active Scanning Responses . | . . Cargo Convoy Interrupts . | . . Stealth | -11 -10 --------- Run | Yrd Mat Distress Signals 3 | . 3 Communications Jammed . | . . Distress Signals . | . . Times Spotted 27 | . 27 Peak Tracking Total 6 | . 6 Tactical Retreats 4 | . 4 Traps | -11 -10 ------- Run | Yrd Mat Traps Triggered 2 | . 2 Indirectly . | . . Trap Hack Attempts . | . . Triggered . | . . Disarmed . | . . Reprogrammed . | . . Reused . | . . Traps Extracted . | . . Installed . | . . Triggered . | . . Machines | -11 -10 ---------- Run | Yrd Mat Machines Disabled . | . . Max in Single Turn . | . . Machines Repaired . | . . Machines Dismantled . | . . Machines Sabotaged . | . . Overloaded Fab Kills . | . . Hacking | -11 -10 --------- Run | Yrd Mat Machines Accessed 4 | . 4 Terminals 3 | . 3 Fabricators . | . . Repair Stations . | . . Recycling Units 1 | . 1 Scanalyzers . | . . Garrison Access . | . . Total Hacks 13 | . 13 Successful 4 | . 4 Failed 9 | . 9 Catastrophic 1 | . 1 Database Lockouts . | . . Manual . | . . Terminals 10 | . 10 Fabricators . | . . Repair Stations . | . . Recycling Units 3 | . 3 Scanalyzers . | . . Garrison Access . | . . Terminal Hacks 4 | . 4 Record 1 | . 1 Emergency Access Points 1 | . 1 Unreport Threat 1 | . 1 Locate Traps 1 | . 1 Fabricator Hacks . | . . Repair Station Hacks . | . . Recycling Unit Hacks . | . . Scanalyzer . | . . Garrison Access Hacks . | . . Unauthorized Hacks . | . . Terminals . | . . Fabricators . | . . Repair Stations . | . . Recycling Units . | . . Scanalyzers . | . . Garrison Access . | . . Data Cores Recovered . | . . Used . | . . Hacking Detections 4 | . 4 Full Trace Events 3 | . 3 Feedback Events . | . . Feedback Blocked . | . . Robot Schematics Acquired . | . . Robots Built . | . . Authchips . | . . Time . | . . Total Robot Build Rating . | . . Part Schematics Acquired . | . . Parts Built . | . . Authchips . | . . Time . | . . Total Part Build Rating . | . . Parts Repaired . | . . Time . | . . Parts Recycled . | . . Recycled Matter . | . . Retrieved Matter . | . . Retrieved Components . | . . Parts Scanalyzed . | . . Part Schematics Acquired . | . . Parts Damaged . | . . Bothacking | -11 -10 ------------ Run | Yrd Mat Used RIF Installer . | . . Robots Hacked . | . . Non-combat . | . . Combat . | . . Robot Hacks Applied . | . . Relay Couplers Released . | . . Fabnet Peak Effective % . | . . Robots Rewired . | . . Allies Hacked . | . . Hacks Repelled . | . . Allies | -11 -10 -------- Run | Yrd Mat Total Allies . | . . Largest Group . | . . Highest-Rated Group . | . . Highest-Rated Ally . | . . Total Orders . | . . Ally Attacks . | . . Total Damage . | . . Kills . | . . Allies Corrupted . | . . Allies Melted . | . . Intel | -11 -10 ------- Run | Yrd Mat Active Infowar (turns) 352 | . 352 ECM 352 | . 352 Robot Analysis Total . | . . Derelict Logs Recovered . | . . Drone Launches . | . . Drone Recoveries . | . . Exploration | -11 -10 ------------- Run | Yrd Mat Turns Passed 981 | 114 867 Spaces Moved 444 | 77 367 Core 25 | 25 . Treads 248 | 52 196 Legs . | . . Wheels 171 | . 171 Hover . | . . Flight . | . . Fastest Speed 50 | 50 95 Average Speed 129 | 124 130 Slowest Speed 240 | 160 240 Overloaded Moves . | . . Propulsion Burnouts . | . . Robots Hopped . | . . Potential Cave-ins . | . . Cave-ins Triggered . | . . Exploration Rate (%) 30 | 4 57 Regions Visited 1 Branch Regions . Pre-discovered Areas . | . . Known Exits Taken . | . . Unknown Exits Taken 1 | 1 . Scrap Searched . | . . Spaces Dug . | . . Terrain Destroyed . | . . Melee . | . . Projectile . | . . AOE . | . . Terrain Rammed . | . . Walls Destroyed . | . . Machines Disabled . | . . Actions | -11 -10 --------- Run | Yrd Mat Total 732 | 93 639 Wait 153 | . 153 Move 443 | 76 367 Hop . | . . Pick Up 16 | 8 8 Fast Attach 17 | 6 11 Attach 6 | . 6 Detach 9 | . 9 Swap 3 | 1 2 Drop 10 | 1 9 Fire 73 | 1 72 Melee . | . . Ram 2 | . 2 Kick . | . . Crush . | . . Escape Stasis . | . . Rewire . | . . Trap . | . . Miscellaneous . | . . Route ------- -11/Scrapyard -10/Materials (discovered 2 exits: [*Mat] / [*Min]) History --------- Turn | Location | Event 51 | -11/Scrapyard | Discovered new exit (range 15) 115 | -11/Scrapyard | Entered Materials 311 | -10/Materials | Discovered new exit (range 15) 318 | -10/Materials | Build established: Mutant 721 | -10/Materials | Discovered new exit (range 16) 764 | -10/Materials | Core integrity fell below 50% 944 | -10/Materials | Core integrity fell below 20% 982 | -10/Materials | Destroyed by G-34 Mercenary with Small Laser Last Messages --------------- 00886_ Acquired Lgt. Ion Engine. 00909_ U-05 Engineer works on Atomic Centrifuge. 00910_ K-01 Serf collects debris. 00913_ U-05 Engineer works on Atomic Centrifuge. 00921_ U-05 Engineer completes Atomic Centrifuge. 00922_ K-01 Serf collects debris. 00927_ System corrupted: Matter fused (-8). 00931_ Connecting with Terminal... >>Access(Emergency) Found 1 emergency access door: (4,52) Map updated. 00931_ ALERT: Suspicious activity at Terminal M006. Dispatching Investigation squad. 00940_ Acquired Grenade Launcher. 00960_ G-34 Mercenary destroyed. 00968_ Acquired 48 matter. 00981_ G-34 Mercenary destroyed. Map ----- +----------------------------------------------------+ | ?????????????? ???????????????? | | ?????????????# #????+?????? | | ?????????????# ##### #####? | | ?????????????# ? | | ?????????????# ? | | ?????????????# """ """ " | | ?????????????+ """ """ " | | ?????????????# """ """ " | | ?????????????+ | | ?????????????# | | ?????????#+#?# """ """ """ " | | ########## #?# """ """ """ " | | # T # #?# """ """ """ " | | # # ### / | | # # | | # + | | # # | | # """ # #######+####+####### | | # """ # #???# # #? | | # """ # #???# # """ #? | | # # #???# """ # """ #? | | ####+##### #???# """ # """ #? | | # # #???# """ # #? | | # # #???# # """ #? | | # # #???######## """ #? | | #! @# #??????????# """ #? | | # %+! #??????????# ## | | # [#= #??????????# """ ## | | # g# #??????????# """ ## | | # + #??????????# """ ## | | # # #??????????# ## | | ########## ?#??????????######### | | ??????????? ????????????????????# | | ??????????? ???????????????????# | | ???????????? #??????????????????? | | ????????????????????????????????? | | ????????????????????????????????? | | ????????????????????????????????? | | ????????????????????????????????? | | ????????????????????????????????? | | ????????????????????????????????? | | ????????????????????????????????? | | ????????????????????????????????? | | ????????????????????????????????? | | | | | | | | | | | | | +----------------------------------------------------+ Best States ------------- Heat Dissipation 35 Energy Generation 10 Energy Capacity 250 Matter Stores 300 Matter Capacity 300 Sight Range 16 Terrain Scan Density 10 ECM Strength 1 Evasion (%) 50 Recoil Reduction 2 Item Schematics ----------------- None Robot Schematics ------------------ None Fabricated ------------ Nothing Repaired ---------- Nothing Alien Tech Used ----------------- None Achievements -------------- None Challenges ------------ None Game ------ Seed ReactivePlasmaKinecellerator Manual? 0 Play Time 00:18:19 Cumulative 31.1 hours Start 2025.07.24 @ 21:38:28 End 2025.07.24 @ 21:56:05 Sessions 1 Manual Loads 0 Difficulty Rogue Special Mode None Game No. 41 Rogue 41 Adventurer 0 Explorer 0 Win Type - Total 1 Types 1/0/0/0/0/0/0/0/0/0 Lore% 5 Gallery% 27 Achievement% 27 Wizard Run 0 Options --------- Layout 1 ASCII 0 Keyboard 1 Movement Numpad Keybinds 0 Fullscreen 1 Font 24/Terminus Map View 50x35 Zoom Use 0% Tactical HUD 1 Map Filters NONE Filters NONE Steam 1 RUN: 2e7bb399-f80b-46de-ad6c-be7db2461a7e